bitfinex-derivatives/quotes_BNBF0:USTF0_20250603
["timestamp","ask_amount","ask_price","bid_price","bid_amount"]
[1748986745059,1.01041579,659.3,659.08,0.30345329]
[1748986745356,1.01041579,659.29,659.08,0.30345329]
[1748986745554,1.01041579,659.28,659.08,0.30345329]
[1748986745753,1.12847694,659.37,659.08,0.30345329]
[1748986745754,1.01041579,659.27,659.08,0.30345329]
[1748986745960,1.01041579,659.26,659.08,0.30345329]
[1748986746258,1.01041579,659.25,659.08,0.30345329]
[1748986746455,1.01041579,659.24,659.08,0.30345329]
[1748986746659,1.01041579,659.23,659.08,0.30345329]
[1748986746862,1.01041579,659.22,659.08,0.30345329]
[1748986747063,1.01041579,659.21,659.08,0.30345329]
[1748986747265,1.01041579,659.2,659.08,0.30345329]
[1748986747464,1.01041579,659.19,659.08,0.30345329]
[1748986747660,1.01041579,659.18,659.08,0.30345329]
[1748986747858,1.5045394,659.48,659.08,0.30345329]
[1748986748163,1.12854749,659.38,659.08,0.30345329]
[1748986748364,1.01051513,659.37,659.08,0.30345329]
[1748986748562,1.12854749,659.38,659.08,0.30345329]
[1748986748563,1.01051513,659.36,659.08,0.30345329]
[1748986748865,1.01051513,659.35,659.08,0.30345329]
[1748986749062,1.01051513,659.34,659.08,0.30345329]
[1748986749263,1.01051513,659.33,659.08,0.30345329]
[1748986749563,1.01051513,659.32,659.08,0.30345329]
[1748986749765,1.01051513,659.31,659.08,0.30345329]
[1748986750065,1.01051513,659.3,659.08,0.30345329]
[1748986750258,1.01051513,659.29,659.08,0.30345329]
[1748986750464,1.01051513,659.28,659.08,0.30345329]
[1748986750764,1.01051513,659.27,659.08,0.30345329]
[1748986750964,1.01051513,659.26,659.08,0.30345329]
[1748986751265,1.01051513,659.25,659.08,0.30345329]
[1748986751565,1.01051513,659.24,659.08,0.30345329]
[1748986751865,1.5045394,659.52,659.08,0.30345329]
[1748986752165,1.12847436,659.4,659.08,0.30345329]
[1748986752459,1.01039608,659.39,659.08,0.30345329]
[1748986752660,1.01039608,659.38,659.08,0.30345329]
[1748986752864,1.01039608,659.37,659.08,0.30345329]
[1748986753163,1.01039608,659.36,659.08,0.30345329]
[1748986753364,1.01039608,659.35,659.08,0.30345329]
[1748986753565,1.01039608,659.34,659.08,0.30345329]
[1748986753764,1.01039608,659.33,659.08,0.30345329]
[1748986753966,1.01039608,659.32,659.08,0.30345329]
[1748986754167,1.01039608,659.31,659.08,0.30345329]
[1748986754366,1.01039608,659.3,659.08,0.30345329]
[1748986754561,1.01039608,659.29,659.08,0.30345329]
[1748986754762,1.01039608,659.28,659.08,0.30345329]
[1748986755071,1.01039608,659.27,659.08,0.30345329]
[1748986755267,1.01039608,659.26,659.08,0.30345329]
[1748986755463,1.01039608,659.25,659.08,0.30345329]
[1748986755767,1.01039608,659.24,659.08,0.30345329]
[1748986755966,1.01039608,659.23,659.08,0.30345329]
[1748986756173,1.01039608,659.22,659.08,0.30345329]
[1748986756365,1.01039608,659.21,659.08,0.30345329]
[1748986756565,1.01039608,659.2,659.08,0.30345329]
[1748986756769,1.01039608,659.19,659.08,0.30345329]
[1748986756968,1.01039608,659.18,659.08,0.30345329]
[1748986757164,1.01039608,659.17,659.08,0.30345329]
[1748986757369,1.01039608,659.16,659.08,0.30345329]
[1748986757665,1.01039608,659.15,659.08,0.30345329]
[1748986757865,1.01039608,659.14,659.08,0.30345329]
[1748986758068,1.01039608,659.13,659.08,0.30345329]
[1748986758269,1.01039608,659.12,659.08,0.30345329]
[1748986758466,1.01039608,659.11,659.08,0.30345329]
[1748986758670,1.01039608,659.1,659.08,0.30345329]
[1748986758872,1.01039608,659.09,659.08,0.30345329]
[1748986759772,1.01006612,659.09,659.08,0.30345329]
[1748986763879,1.01032024,659.09,659.08,0.30345329]
[1748986767783,1.5045394,659.48,659.08,0.30345329]
[1748986767983,1.12698968,659.34,659.08,0.30345329]
[1748986768176,2.13697954,659.33,659.08,0.30345329]
[1748986768380,1.00998986,659.32,659.08,0.30345329]
[1748986768577,1.00998986,659.31,659.08,0.30345329]
[1748986768781,1.00998986,659.3,659.08,0.30345329]
[1748986768980,1.00998986,659.29,659.08,0.30345329]
[1748986769180,1.0096647,659.28,659.08,0.30345329]
[1748986769381,1.0096647,659.27,659.08,0.30345329]
[1748986769584,1.0096647,659.26,659.08,0.30345329]
[1748986769784,1.0096647,659.25,659.08,0.30345329]
[1748986769979,1.0096647,659.24,659.08,0.30345329]
[1748986770180,1.0096647,659.23,659.08,0.30345329]
[1748986770382,1.0096647,659.22,659.08,0.30345329]
[1748986770582,1.0096647,659.21,659.08,0.30345329]
[1748986770884,3.7613485,660.1,659.08,0.30345329]
[1748986770885,1.0096647,659.2,659.08,0.30345329]
[1748986771090,1.0096647,659.19,659.08,0.30345329]
[1748986771289,1.0096647,659.18,659.08,0.30345329]
[1748986771584,1.0096647,659.17,659.08,0.30345329]
[1748986771786,1.5045394,659.43,659.08,0.30345329]
[1748986771986,1.12663682,659.31,659.08,0.30345329]
[1748986772288,2.13612999,659.3,659.08,0.30345329]
[1748986772480,1.00949317,659.29,659.08,0.30345329]
[1748986772679,1.00949317,659.28,659.08,0.30345329]
[1748986772880,1.00949317,659.27,659.08,0.30345329]
[1748986773188,1.00949317,659.26,659.08,0.30345329]
[1748986773387,1.00949317,659.25,659.08,0.30345329]
[1748986773581,1.00949317,659.24,659.08,0.30345329]
[1748986773781,1.00949317,659.23,659.08,0.30345329]
[1748986773981,1.00949317,659.22,659.08,0.30345329]
[1748986774185,1.00949317,659.21,659.08,0.30345329]
[1748986774486,1.00949317,659.2,659.08,0.30345329]
[1748986774685,1.00949317,659.19,659.08,0.30345329]
[1748986774884,1.00949317,659.18,659.08,0.30345329]
[1748986775081,1.00949317,659.17,659.08,0.30345329]
[1748986775285,1.00949317,659.16,659.08,0.30345329]
[1748986775581,1.00949317,659.15,659.08,0.30345329]
[1748986775781,1.5045394,659.4,659.08,0.30345329]
[1748986776082,1.12631509,659.29,659.08,0.30345329]
[1748986776289,1.01219652,659.28,659.08,0.30345329]
[1748986776588,1.01219652,659.27,659.08,0.30345329]
[1748986776786,1.01219652,659.26,659.08,0.30345329]
[1748986776986,1.01219652,659.25,659.08,0.30345329]
[1748986777187,1.01219652,659.24,659.08,0.30345329]
[1748986777387,1.01219652,659.23,659.08,0.30345329]
[1748986777687,1.01219652,659.22,659.08,0.30345329]
[1748986777883,1.01219652,659.21,659.08,0.30345329]
[1748986778089,1.01219652,659.2,659.08,0.30345329]
[1748986778291,1.01219652,659.19,659.08,0.30345329]
[1748986778483,1.01219652,659.18,659.08,0.30345329]
[1748986778684,1.01219652,659.17,659.08,0.30345329]
[1748986778885,1.01219652,659.16,659.08,0.30345329]
[1748986779189,1.01219652,659.15,659.08,0.30345329]
[1748986779389,1.01219652,659.14,659.08,0.30345329]
[1748986779585,1.01219652,659.13,659.08,0.30345329]
[1748986779786,1.5045394,659.48,659.08,0.30345329]
[1748986779987,1.1261871,659.34,659.08,0.30345329]
[1748986780187,1.0120455,659.33,659.08,0.30345329]
[1748986780487,1.0120455,659.32,659.08,0.30345329]
[1748986780691,1.0120455,659.31,659.08,0.30345329]
[1748986780991,1.0120455,659.3,659.08,0.30345329]
[1748986781191,1.0120455,659.29,659.08,0.30345329]
[1748986781388,1.0120455,659.28,659.08,0.30345329]
[1748986781585,1.0120455,659.27,659.08,0.30345329]
[1748986781791,1.0120455,659.26,659.08,0.30345329]
[1748986781987,1.0120455,659.25,659.08,0.30345329]
[1748986782188,1.0120455,659.24,659.08,0.30345329]
[1748986782488,1.0120455,659.23,659.08,0.30345329]
[1748986782690,1.0120455,659.22,659.08,0.30345329]
[1748986782893,1.0120455,659.21,659.08,0.30345329]
[1748986783093,1.0120455,659.2,659.08,0.30345329]
[1748986783393,1.0120455,659.19,659.08,0.30345329]
[1748986783588,1.0120455,659.18,659.08,0.30345329]
[1748986783788,1.0120455,659.17,659.08,0.30345329]
[1748986783990,1.01213581,659.16,659.08,0.30345329]
[1748986784188,1.01213581,659.15,659.08,0.30345329]
[1748986784388,1.01213581,659.14,659.08,0.30345329]
[1748986784588,1.01213581,659.13,659.08,0.30345329]
[1748986784794,1.01213581,659.12,659.08,0.30345329]
[1748986784990,1.01213581,659.11,659.08,0.30345329]
[1748986785190,1.01213581,659.1,659.08,0.30345329]
[1748986785397,1.12628756,659.35,659.08,0.30345329]
[1748986785597,1.01231299,659.34,659.08,0.30345329]
[1748986785896,1.01231299,659.33,659.08,0.30345329]
[1748986786096,1.01231299,659.32,659.08,0.30345329]
[1748986786395,1.01231299,659.31,659.08,0.30345329]
[1748986786595,1.01231299,659.3,659.08,0.30345329]
[1748986786797,1.01231299,659.29,659.08,0.30345329]
[1748986786993,1.01231299,659.28,659.08,0.30345329]
[1748986787197,1.01231299,659.27,659.08,0.30345329]
[1748986787499,1.12628756,659.36,659.08,0.30345329]
[1748986787500,1.01231299,659.26,659.08,0.30345329]
[1748986787693,1.01231299,659.25,659.08,0.30345329]
[1748986787895,1.0124308,659.24,659.08,0.30345329]
[1748986788091,1.0124308,659.23,659.08,0.30345329]
[1748986788295,1.0124308,659.22,659.08,0.30345329]
[1748986788497,1.0124308,659.21,659.08,0.30345329]
[1748986788693,1.0124308,659.2,659.08,0.30345329]
[1748986788892,1.0124308,659.19,659.08,0.30345329]
[1748986789202,1.0124308,659.18,659.08,0.30345329]
[1748986789494,1.0124308,659.17,659.08,0.30345329]
[1748986789698,1.0124308,659.16,659.08,0.30345329]
[1748986789899,1.0124308,659.15,659.08,0.30345329]
[1748986790099,1.0124308,659.14,659.08,0.30345329]
[1748986790394,1.12663091,659.34,659.08,0.30345329]
[1748986790395,1.0124308,659.13,659.08,0.30345329]
[1748986790595,1.12663091,659.34,659.08,0.30345329]
[1748986790794,1.0128018,659.33,659.08,0.30345329]
[1748986790994,1.0128018,659.32,659.08,0.30345329]
[1748986791198,1.0128018,659.31,659.08,0.30345329]
[1748986791498,1.0128018,659.3,659.08,0.30345329]
[1748986791693,1.0128018,659.29,659.08,0.30345329]
[1748986792002,1.01282364,659.28,659.08,0.30345329]
[1748986792199,1.01282364,659.27,659.08,0.30345329]
[1748986792393,1.01282364,659.26,659.08,0.30345329]
[1748986792597,1.01282364,659.25,659.08,0.30345329]
[1748986792796,1.01282364,659.24,659.08,0.30345329]
[1748986792998,1.01282364,659.23,659.08,0.30345329]
[1748986793195,1.01282364,659.22,659.08,0.30345329]
[1748986793399,1.01282364,659.21,659.08,0.30345329]
[1748986793599,1.01282364,659.2,659.08,0.30345329]
[1748986793800,1.01282364,659.19,659.08,0.30345329]
[1748986793997,1.01282364,659.18,659.08,0.30345329]
[1748986794302,1.01282364,659.17,659.08,0.30345329]
[1748986794502,1.01282364,659.16,659.08,0.30345329]
[1748986794705,1.01282364,659.15,659.08,0.30345329]
[1748986794903,1.01282364,659.14,659.08,0.30345329]
[1748986795102,1.01282364,659.13,659.08,0.30345329]
[1748986795302,1.01282364,659.12,659.08,0.30345329]
[1748986795504,1.12672823,659.36,659.08,0.30345329]
[1748986795805,2.13971279,659.35,659.08,0.30345329]
[1748986796004,1.01298725,659.34,659.08,0.30345329]
[1748986796198,1.01298725,659.33,659.08,0.30345329]
[1748986796403,1.01298725,659.32,659.08,0.30345329]
[1748986796598,1.5045394,659.49,659.08,0.30345329]
[1748986796799,1.01295768,659.48,659.08,0.30345329]
[1748986797106,1.12685497,659.36,659.08,0.30345329]
[1748986798007,1.01295768,659.35,659.08,0.30345329]
[1748986798706,1.01295768,659.34,659.08,0.30345329]
[1748986799609,2.13981265,659.34,659.08,0.30345329]
[1748986801010,1.5045394,659.46,659.08,0.30345329]
[1748986802810,2.2568091,659.59,659.08,0.30345329]
[1748986805520,3.7613485,660.08,659.08,0.30345329]
[1748986806324,0.26390927,660.98,659.08,0.30345329]
[1748986811923,0.26385924,661.14,659.08,0.30345329]
[1748986814632,2.7874928,670.77,659.08,0.30345329]
[1748986815224,0.26384724,661.22,659.08,0.30345329]
[1748986815431,1.12539122,659.83,659.08,0.30345329]
[1748986815629,1.01257696,659.82,659.08,0.30345329]
[1748986815829,1.01257696,659.81,659.08,0.30345329]
[1748986816130,1.01257696,659.8,659.08,0.30345329]
[1748986816329,1.01257696,659.79,659.08,0.30345329]
[1748986816526,1.50052163,660.0,659.08,0.30345329]
[1748986816826,3.75130409,660.63,659.08,0.30345329]
[1748986816827,1.12458968,659.91,659.08,0.30345329]
[1748986817025,1.01191226,659.9,659.08,0.30345329]
[1748986817231,1.01191226,659.89,659.08,0.30345329]
[1748986817430,1.01191226,659.88,659.08,0.30345329]
[1748986817630,1.01191226,659.87,659.08,0.30345329]
[1748986817827,1.01191226,659.86,659.08,0.30345329]
[1748986818130,1.01191226,659.85,659.08,0.30345329]
[1748986818330,1.01191226,659.84,659.08,0.30345329]
[1748986818532,1.01191226,659.83,659.08,0.30345329]
[1748986818825,1.01191226,659.82,659.08,0.30345329]
[1748986819033,1.01191226,659.81,659.08,0.30345329]
[1748986819229,1.01191226,659.8,659.08,0.30345329]
[1748986819433,1.01191226,659.79,659.08,0.30345329]
[1748986819628,1.01191226,659.78,659.08,0.30345329]
[1748986819831,1.01191226,659.77,659.08,0.30345329]
[1748986820031,1.01191226,659.76,659.08,0.30345329]
[1748986820230,1.01191226,659.75,659.08,0.30345329]
[1748986820428,1.0101833,659.74,659.08,0.30345329]
[1748986820630,1.0101833,659.73,659.08,0.30345329]
[1748986820835,1.0101833,659.72,659.08,0.30345329]
[1748986821035,1.0101833,659.71,659.08,0.30345329]
[1748986821235,1.0101833,659.7,659.08,0.30345329]
[1748986821437,1.0101833,659.69,659.08,0.30345329]
[1748986821636,1.0101833,659.68,659.08,0.30345329]
[1748986821837,1.12196938,659.92,659.08,0.30345329]
[1748986822035,1.00990523,659.91,659.08,0.30345329]
[1748986822234,1.00990523,659.9,659.08,0.30345329]
[1748986822435,1.00990523,659.89,659.08,0.30345329]
[1748986822640,1.00990523,659.88,659.08,0.30345329]
[1748986822945,1.00990523,659.87,659.08,0.30345329]
[1748986823138,1.00990523,659.86,659.08,0.30345329]
[1748986823338,1.00990523,659.85,659.08,0.30345329]
[1748986823535,1.00990523,659.84,659.08,0.30345329]
[1748986823735,1.00990523,659.83,659.08,0.30345329]
[1748986823936,1.00990523,659.82,659.08,0.30345329]
[1748986824140,1.00990523,659.81,659.08,0.30345329]
[1748986824341,1.00990523,659.8,659.08,0.30345329]
[1748986824540,1.00963636,659.79,659.08,0.30345329]
[1748986824835,1.00963636,659.78,659.08,0.30345329]
[1748986825042,1.00963636,659.77,659.08,0.30345329]
[1748986825240,1.00963636,659.76,659.08,0.30345329]
[1748986825437,1.00963636,659.75,659.08,0.30345329]
[1748986825642,1.00963636,659.74,659.08,0.30345329]
[1748986825836,1.50052163,660.13,659.08,0.30345329]
[1748986825837,1.00909388,659.73,659.08,0.30345329]
[1748986826035,1.00909388,659.72,659.08,0.30345329]
[1748986826238,1.00909388,659.71,659.08,0.30345329]
[1748986826436,3.75130409,660.84,659.08,0.30345329]
[1748986826437,1.00909388,659.7,659.08,0.30345329]
[1748986826742,1.00909388,659.69,659.08,0.30345329]
[1748986826938,1.00909388,659.68,659.08,0.30345329]
[1748986827136,1.00909388,659.67,659.08,0.30345329]
[1748986827338,1.00909388,659.66,659.08,0.30345329]
[1748986827543,1.00909388,659.65,659.08,0.30345329]
[1748986827741,1.00909388,659.64,659.08,0.30345329]
[1748986827937,1.00909388,659.63,659.08,0.30345329]
[1748986828142,1.50052163,660.0,659.08,0.30345329]
[1748986828344,3.75130409,660.74,659.08,0.30345329]
[1748986828345,1.11959485,659.84,659.08,0.30345329]
[1748986828545,1.00840775,659.83,659.08,0.30345329]
[1748986828743,1.00840775,659.82,659.08,0.30345329]
[1748986828940,1.00840775,659.81,659.08,0.30345329]
[1748986829143,1.00840775,659.8,659.08,0.30345329]
[1748986829443,1.00840775,659.79,659.08,0.30345329]
[1748986829637,1.00840775,659.78,659.08,0.30345329]
[1748986829838,1.00840775,659.77,659.08,0.30345329]
[1748986830137,1.00840775,659.76,659.08,0.30345329]
[1748986830444,1.00840775,659.75,659.08,0.30345329]
[1748986830644,1.00840775,659.74,659.08,0.30345329]
[1748986830838,1.00840775,659.73,659.08,0.30345329]
[1748986831042,1.00840775,659.72,659.08,0.30345329]
[1748986831243,1.00840775,659.71,659.08,0.30345329]
[1748986831543,1.00840775,659.7,659.08,0.30345329]
[1748986831742,1.00840775,659.69,659.08,0.30345329]
[1748986831943,1.00840775,659.68,659.08,0.30345329]
[1748986832138,1.00744781,659.67,659.08,0.30345329]
[1748986832345,1.00744781,659.66,659.08,0.30345329]
[1748986832544,1.00744781,659.65,659.08,0.30345329]
[1748986832845,1.00744781,659.64,659.08,0.30345329]
[1748986833054,1.00744781,659.63,659.08,0.30345329]
[1748986833244,1.00744781,659.62,659.08,0.30345329]
[1748986833445,1.00744781,659.61,659.08,0.30345329]
[1748986833742,1.00744781,659.6,659.08,0.30345329]
[1748986833946,3.75130409,660.72,659.16,0.4827756]
[1748986833947,1.00744781,659.59,659.16,0.4827756]
[1748986834146,1.00744781,659.58,659.17,0.30341186]
[1748986834347,1.11920534,659.79,659.17,0.30341186]
[1748986834647,1.00690614,659.78,659.17,0.30341186]
[1748986834847,1.00690614,659.77,659.17,0.30341186]
[1748986835147,1.00690614,659.76,659.17,0.30341186]
[1748986835347,1.00690614,659.75,659.17,0.30341186]
[1748986835547,1.00690614,659.74,659.17,0.30341186]
[1748986835744,1.00690614,659.73,659.17,0.30341186]
[1748986835944,1.49227379,659.92,659.17,0.30341186]
[1748986836147,1.11947802,659.81,659.17,0.30341186]
[1748986836347,1.0069917,659.8,659.17,0.30341186]
[1748986836550,1.0069917,659.79,659.17,0.30341186]
[1748986836752,1.0069917,659.78,659.17,0.30341186]
[1748986836951,1.0069917,659.77,659.17,0.30341186]
[1748986837150,1.0069917,659.76,659.17,0.30341186]
[1748986837351,1.0069917,659.75,659.17,0.30341186]
[1748986837547,1.0069917,659.74,659.17,0.30341186]
[1748986837748,1.0069917,659.73,659.17,0.30341186]
[1748986837953,1.49227379,659.94,659.17,0.30341186]
[1748986837954,1.0069917,659.72,659.17,0.30341186]
[1748986838147,1.0069917,659.71,659.17,0.30341186]
[1748986838348,1.0069917,659.7,659.17,0.30341186]
[1748986838550,1.0069917,659.69,659.17,0.30341186]
[1748986838749,1.0069917,659.68,659.17,0.30341186]
[1748986838946,1.0069917,659.67,659.17,0.30341186]
[1748986839151,1.0069917,659.66,659.17,0.30341186]
[1748986839352,1.11947802,659.84,659.17,0.30341186]
[1748986839353,1.0069917,659.65,659.17,0.30341186]
[1748986839551,1.0069917,659.64,659.17,0.30341186]
[1748986839753,1.0069917,659.63,659.17,0.30341186]
[1748986839955,1.00764283,659.62,659.17,0.30341186]
[1748986840153,1.00764283,659.61,659.17,0.30341186]
[1748986840353,1.1201358,659.84,659.17,0.30341186]
[1748986840555,1.0077253,659.83,659.17,0.30341186]
[1748986840854,1.0077253,659.82,659.17,0.30341186]
[1748986841056,1.0077253,659.81,659.17,0.30341186]
[1748986841255,1.0077253,659.8,659.17,0.30341186]
[1748986841556,1.0077253,659.79,659.17,0.30341186]
[1748986841757,1.0077253,659.78,659.17,0.30341186]
[1748986842055,1.0077253,659.77,659.17,0.30341186]
[1748986842256,1.0077253,659.76,659.17,0.30341186]
[1748986842455,1.0077253,659.75,659.17,0.30341186]
[1748986842658,1.0077253,659.74,659.17,0.30341186]
[1748986842851,1.0077253,659.73,659.17,0.30341186]
[1748986843058,1.0077253,659.72,659.17,0.30341186]
[1748986843257,1.1201358,659.86,659.17,0.30341186]
[1748986843258,1.0077253,659.71,659.17,0.30341186]
[1748986843453,1.0077253,659.7,659.17,0.30341186]
[1748986843660,1.0077253,659.69,659.17,0.30341186]
[1748986843859,1.0077253,659.68,659.17,0.30341186]
[1748986844054,1.00844737,659.67,659.17,0.30341186]
[1748986844257,1.49227379,659.99,659.17,0.30341186]
[1748986844258,1.00844737,659.66,659.17,0.30341186]
[1748986844457,1.00844737,659.65,659.17,0.30341186]
[1748986844655,1.00844737,659.64,659.17,0.30341186]
[1748986844860,1.00844737,659.63,659.17,0.78618746]
[1748986845056,1.00844737,659.62,659.17,0.78618746]
[1748986845254,1.12090841,659.84,659.17,0.30341186]
[1748986845455,1.00877147,659.83,659.17,0.30341186]
[1748986845761,1.00877147,659.82,659.17,0.78618746]
[1748986845960,1.00877147,659.81,659.17,0.30341186]
[1748986846161,1.00877147,659.8,659.17,0.30341186]
[1748986846364,1.00877147,659.79,659.17,0.30341186]
[1748986846565,1.00877147,659.78,659.17,0.78618746]
[1748986846862,1.00877147,659.77,659.17,0.78618746]
[1748986847063,1.00877147,659.76,659.17,0.78618746]
[1748986847263,1.00877147,659.75,659.17,0.30341186]
[1748986847564,1.00877147,659.74,659.17,0.30341186]
[1748986847756,1.00877147,659.73,659.17,0.30341186]
[1748986847961,1.00936825,659.72,659.17,0.78618746]
[1748986848163,1.00936825,659.71,659.17,0.30341186]
[1748986848458,1.00936825,659.7,659.17,0.30341186]
[1748986848661,1.12191212,659.84,659.17,0.30341186]
[1748986848662,1.00936825,659.69,659.17,0.30341186]
[1748986848865,1.00936825,659.68,659.17,0.78618746]
[1748986849060,1.00936825,659.67,659.17,0.78618746]
[1748986849264,1.00936825,659.66,659.17,0.30341186]
[1748986849460,1.00936825,659.65,659.17,0.30341186]
[1748986849662,1.00936825,659.64,659.17,0.30341186]
[1748986849860,1.00936825,659.63,659.17,0.30341186]
[1748986850060,1.00936825,659.62,659.17,0.30341186]
[1748986850362,1.00936825,659.61,659.17,0.30341186]
[1748986850562,1.12191212,659.83,659.17,0.30341186]
[1748986850860,1.00998998,659.82,659.17,0.30341186]
[1748986851063,1.00998998,659.81,659.17,0.30341186]
[1748986851266,1.00998998,659.8,659.17,0.30341186]
[1748986851463,1.00998998,659.79,659.17,0.30341186]
[1748986851664,1.00998998,659.78,659.17,0.78618746]
[1748986851865,1.00998998,659.77,659.17,0.78618746]
[1748986852068,1.01034028,659.76,659.17,0.78618746]
[1748986852269,1.01034028,659.75,659.17,0.30341186]
[1748986852464,1.01034028,659.74,659.17,0.30341186]
[1748986852664,1.12303378,659.81,659.17,0.30341186]
[1748986852665,1.01034028,659.73,659.17,0.30341186]
[1748986852863,1.01034028,659.72,659.17,0.30341186]
[1748986853062,1.01034028,659.71,659.17,0.30341186]
[1748986853268,1.01034028,659.7,659.17,0.30341186]
[1748986853461,1.01034028,659.69,659.17,0.30341186]
[1748986853767,1.01034028,659.68,659.17,0.78618746]
[1748986854070,1.01034028,659.67,659.17,0.30341186]
[1748986854366,1.01034028,659.66,659.17,0.30341186]
[1748986854566,1.01034028,659.65,659.17,0.30341186]
[1748986854762,1.12303378,659.87,659.17,0.30341186]
[1748986854966,3.75130409,660.61,659.17,0.30341186]
[1748986854967,1.01184591,659.86,659.17,0.30341186]
[1748986855163,1.01184591,659.85,659.17,0.30341186]
[1748986855367,1.01184591,659.84,659.17,0.30341186]
[1748986855570,1.01184591,659.83,659.17,0.30341186]
[1748986855769,1.01184591,659.82,659.17,0.30341186]
[1748986856070,1.01239189,659.81,659.17,0.78618746]
[1748986856267,1.01239189,659.8,659.17,0.78618746]
[1748986856467,1.01239189,659.79,659.17,0.78618746]
[1748986856668,1.01239189,659.78,659.17,0.30341186]
[1748986856868,1.01239189,659.77,659.17,0.30341186]
[1748986857067,1.01239189,659.76,659.17,0.30341186]
[1748986857267,1.01239189,659.75,659.17,0.30341186]
[1748986857574,1.01239189,659.74,659.17,0.30341186]
[1748986857771,1.01239189,659.73,659.17,0.30341186]
[1748986857972,1.01239189,659.72,659.17,0.30341186]
[1748986858174,1.01239189,659.71,659.17,0.30341186]
[1748986858367,1.01239189,659.7,659.17,0.30341186]
[1748986858570,1.01239189,659.69,659.17,0.30341186]
[1748986858772,1.01239189,659.68,659.17,0.30341186]
[1748986858971,1.01239189,659.67,659.17,0.30341186]
[1748986859171,1.01239189,659.66,659.17,0.30341186]
[1748986859373,1.01239189,659.65,659.17,0.30341186]
[1748986859574,1.01239189,659.64,659.17,0.30341186]
[1748986859769,1.01239189,659.63,659.17,0.78618746]
[1748986859967,1.12595348,659.86,659.17,0.30341186]
[1748986860171,1.01339875,659.85,659.17,0.30341186]
[1748986860373,1.12595348,659.86,659.17,0.30341186]
[1748986860374,1.01339875,659.84,659.17,0.30341186]
[1748986860573,1.01339875,659.83,659.17,0.78618746]
[1748986860875,1.01339875,659.82,659.17,0.30341186]
[1748986861076,1.01339875,659.81,659.17,0.30341186]
[1748986861275,1.01339875,659.8,659.17,0.30341186]
[1748986861471,1.01339875,659.79,659.17,0.78618746]
[1748986861676,1.01339875,659.78,659.18,0.4827756]
[1748986861868,1.01339875,659.78,659.17,0.30341186]
[1748986861869,1.01339875,659.77,659.19,0.4827756]
[1748986862073,1.01339875,659.76,659.19,0.4827756]
[1748986862272,1.01339875,659.75,659.2,0.30339805]
[1748986862471,1.01337077,659.74,659.2,0.30339805]
[1748986862777,1.01337077,659.73,659.2,0.30339805]
[1748986862971,1.12592384,659.89,659.2,0.30339805]
[1748986862972,1.01337077,659.72,659.2,0.30339805]
[1748986863172,1.01337077,659.71,659.2,0.30339805]
[1748986863370,1.01337077,659.7,659.23,0.4827756]
[1748986863574,1.01337077,659.69,659.24,0.30337964]
[1748986863771,1.01337077,659.68,659.24,0.30337964]
[1748986863976,1.01337077,659.67,659.24,0.30337964]
[1748986864179,1.01337077,659.66,659.24,0.30337964]
[1748986864479,1.12592384,659.89,659.24,0.30337964]
[1748986864779,1.01334894,659.88,659.24,0.30337964]
[1748986864978,1.01334894,659.87,659.24,0.30337964]
[1748986865177,1.01334894,659.86,659.24,0.30337964]
[1748986865377,1.01334894,659.85,659.24,0.30337964]
[1748986865578,1.01334894,659.84,659.24,0.30337964]
[1748986865776,1.01334894,659.83,659.24,0.30337964]
[1748986865977,1.01334894,659.82,659.24,0.30337964]
[1748986866180,1.01334894,659.81,659.24,0.30337964]
[1748986866380,1.49227379,660.02,659.24,0.30337964]
[1748986866581,1.12594693,659.89,659.24,0.30337964]
[1748986866879,1.01389612,659.88,659.24,0.30337964]
[1748986867072,1.01389612,659.87,659.24,0.30337964]
[1748986867274,1.01389612,659.86,659.24,0.30337964]
[1748986867580,1.01389612,659.85,659.24,0.30337964]
[1748986867779,1.12594693,659.89,659.24,0.30337964]
[1748986867780,1.01389612,659.84,659.24,0.30337964]
[1748986867976,1.01389612,659.83,659.24,0.30337964]
[1748986868178,1.01389612,659.82,659.24,0.30337964]
[1748986868378,1.01389612,659.81,659.24,0.30337964]
[1748986868683,1.01389612,659.8,659.24,0.30337964]
[1748986868980,1.01389612,659.79,659.24,0.30337964]
[1748986869180,1.01389612,659.78,659.24,0.30337964]
[1748986869376,1.01389612,659.77,659.24,0.30337964]
[1748986869578,1.01389612,659.76,659.24,0.30337964]
[1748986869777,2.25078245,660.31,659.24,0.30337964]
[1748986869778,1.01389612,659.75,659.24,0.30337964]
[1748986869982,1.01389612,659.74,659.24,0.30337964]
[1748986870183,1.01389612,659.73,659.24,0.30337964]
[1748986870380,1.01389612,659.72,659.24,0.30337964]
[1748986870581,1.01436285,659.71,659.24,0.30337964]
[1748986870779,1.01436285,659.7,659.24,0.30337964]
[1748986870975,1.01436285,659.69,659.24,0.30337964]
[1748986871277,1.01436285,659.68,659.24,0.30337964]
[1748986871481,1.01436285,659.67,659.24,0.30337964]
[1748986871683,1.01436285,659.66,659.24,0.30337964]
[1748986871879,1.01436285,659.65,659.24,0.30337964]
[1748986872087,1.01436285,659.64,659.24,0.30337964]
[1748986872283,1.01436285,659.63,659.24,0.30337964]
[1748986872484,1.01436285,659.62,659.24,0.30337964]
[1748986872784,1.01436285,659.61,659.24,0.30337964]
[1748986872985,1.01436285,659.6,659.24,0.30337964]